fUSD/lending_fUSD_20260118
["ID","MTS","AMOUNT","RATE_DAILY","PERIOD"]
[402547397,1768704683566,-261.003409,0.00017042,2]
[402547398,1768704683579,-193.064285,0.00017042,2]
[402547399,1768704683589,-193.064285,0.00017042,2]
[402547400,1768704683599,-193.064285,0.00017042,2]
[402547401,1768704683608,-193.06428,0.00017042,2]
[402547402,1768704683618,-213.0,0.00017043,2]
[402547403,1768704683627,-266.0,0.00017043,2]
[402547404,1768704683637,-150.0,0.00017043,2]
[402547405,1768704683647,-200.0,0.00017043,2]
[402547406,1768704683657,-1851.0,0.00017057,2]
[402547407,1768704683675,-150.0,0.00017061,2]
[402547408,1768704683696,-500.0,0.00017069,2]
[402547409,1768704683715,-5180.0,0.00017078,2]
[402547410,1768704683725,-802.62,0.00017112,2]
[402547411,1768704683743,-1125.3,0.00017118,2]
[402547412,1768704683765,-1000.0,0.00017119,2]
[402547413,1768704683775,-500.0,0.00017123,2]
[402547414,1768704683785,-15078.57925675,0.00017126,2]
[402547415,1768704683795,-20401.8507,0.00017126,2]
[402547416,1768704683806,-150.0,0.00017137,2]
[402547417,1768704683817,-227.081,0.00017157,2]
[402547418,1768704683827,-250.0,0.00017157,2]
[402547419,1768704683839,-194.74,0.00017157,2]
[402547420,1768704683849,-150.0,0.00017157,2]
[402547421,1768704683860,-157.662,0.00017157,2]
[402547422,1768704683870,-250.0,0.00017157,2]
[402547423,1768704683881,-150.139,0.00017157,2]
[402547424,1768704683892,-191.172,0.00017157,2]
[402547425,1768704683902,-163.995,0.00017157,2]
[402547426,1768704683913,-212.236,0.00017157,2]
[402547427,1768704683922,-250.0,0.00017157,2]
[402547428,1768704683932,-170.0,0.00017157,2]
[402547429,1768704683942,-230.36,0.00017157,2]
[402547430,1768704683952,-150.0,0.00017157,2]
[402547431,1768704683962,-187.78006525,0.00017163,2]
[402547432,1768704683972,-617.40005154,0.00017163,2]
[402547433,1768704683982,-649.86,0.00017165,2]
[402547434,1768704683992,-5180.0,0.00017169,2]
[402547435,1768704684002,-467.79,0.00017178,2]
[402547436,1768704684012,-500.0,0.00017178,2]
[402547437,1768704684021,-151.0,0.0001718,2]
[402547438,1768704684031,-151.0,0.0001718,2]
[402547439,1768704684042,-151.0,0.0001718,2]
[402547440,1768704684051,-151.0,0.0001718,2]
[402547441,1768704684062,-151.0,0.0001718,2]
[402547442,1768704684072,-151.0,0.0001718,2]
[402547443,1768704684081,-151.0,0.0001718,2]
[402547444,1768704684091,-151.0,0.0001718,2]
[402547445,1768704684101,-151.0,0.0001718,2]
[402547446,1768704684110,-151.0,0.0001718,2]
[402547447,1768704684120,-151.0,0.0001718,2]
[402547448,1768704684130,-151.0,0.0001718,2]
[402547449,1768704684140,-151.0,0.0001718,2]
[402547450,1768704684150,-151.0,0.0001718,2]
[402547451,1768704684159,-168.486627,0.0001718,2]
[402547452,1768704684169,-168.486627,0.0001718,2]
[402547453,1768704684179,-168.486627,0.0001718,2]
[402547454,1768704684189,-168.486627,0.0001718,2]
[402547455,1768704684198,-151.0,0.0001718,2]
[402547456,1768704684208,-151.0,0.0001718,2]
[402547457,1768704684217,-151.0,0.0001718,2]
[402547458,1768704684227,-151.0,0.0001718,2]
[402547459,1768704684237,-151.0,0.0001718,2]
[402547460,1768704684247,-151.0,0.0001718,2]
[402547461,1768704684257,-151.0,0.0001718,2]
[402547462,1768704684266,-151.0,0.0001718,2]
[402547463,1768704684275,-205.779346,0.0001718,2]
[402547464,1768704684284,-205.779346,0.0001718,2]
[402547465,1768704684294,-151.0,0.0001718,2]
[402547466,1768704684304,-205.779346,0.0001718,2]
[402547467,1768704684313,-205.779339,0.0001718,2]
[402547468,1768704684322,-17724.84080165,0.00017197,2]
[402547469,1768704684331,-300.0,0.000172,2]
[402547470,1768704684340,-1851.0,0.00017202,2]
[402547471,1768704684350,-151.0,0.00017202,2]
[402547472,1768704684359,-151.0,0.00017202,2]
[402547473,1768704684368,-258.895755,0.00017202,2]
[402547474,1768704684377,-255.647116,0.00017202,2]
[402547475,1768704684386,-255.647116,0.00017202,2]
[402547476,1768704684396,-255.647116,0.00017202,2]
[402547477,1768704684407,-255.647116,0.00017202,2]
[402547478,1768704684417,-151.0,0.00017202,2]
[402547479,1768704684426,-161.10000068,0.00017205,2]
[402547480,1768704684436,-177.118412,0.00017206,2]
[402547481,1768704684446,-177.118412,0.00017206,2]
[402547482,1768704684456,-177.118412,0.00017206,2]
[402547483,1768704684467,-151.0,0.00017206,2]
[402547484,1768704684478,-177.118404,0.00017206,2]
[402547485,1768704684488,-151.0,0.00017206,2]
[402547486,1768704684497,-151.0,0.00017206,2]
[402547487,1768704684506,-257.25966,0.00017206,2]
[402547488,1768704684516,-151.0,0.00017206,2]
[402547489,1768704684526,-151.0,0.00017206,2]
[402547490,1768704684535,-151.0,0.00017206,2]
[402547491,1768704684545,-151.0,0.00017206,2]
[402547492,1768704684554,-1874.84,0.00017212,2]
[402547493,1768704684562,-1851.0,0.00017214,2]
[402547494,1768704684570,-1125.3,0.00017216,2]
[402547495,1768704684579,-500.0,0.00017233,2]
[402547496,1768704684588,-559.56,0.00017246,2]
[402547497,1768704684598,-150.0,0.00017256,2]
[402547498,1768704684607,-155.0,0.00017259,2]
[402547499,1768704684617,-979.80974503,0.0001726,2]
[402547500,1768704684626,-163.520128,0.0001726,2]
[402547501,1768704684636,-163.520128,0.0001726,2]
[402547502,1768704684645,-163.520129,0.0001726,2]
[402547503,1768704684655,-184.062244,0.0001726,2]
[402547504,1768704684664,-184.062244,0.0001726,2]
[402547505,1768704684673,-184.062244,0.0001726,2]
[402547506,1768704684682,-184.062244,0.0001726,2]
[402547507,1768704684694,-203.92938,0.0001726,2]
[402547508,1768704684702,-203.92938,0.0001726,2]
[402547509,1768704684711,-390.09,0.0001726,2]
[402547510,1768704684721,-523.30144301,0.0001726,2]
[402547511,1768704684732,-500.0,0.0001726,2]
[402547512,1768704684742,-228.26,0.0001726,2]
[402547513,1768704684751,-524.58,0.0001726,2]
[402547514,1768704684761,-660.78,0.0001726,2]
[402547515,1768704684770,-500.0,0.0001726,2]
[402547516,1768704684779,-404.59,0.0001726,2]
[402547517,1768704684788,-500.0,0.0001726,2]
[402547518,1768704684797,-500.0,0.0001726,2]
[402547519,1768704684887,-500.0,0.0001726,2]
[402547520,1768704684897,-500.0,0.0001726,2]
[402547521,1768704684907,-599.82,0.0001726,2]
[402547522,1768704684917,-500.0,0.0001726,2]
[402547523,1768704684926,-500.0,0.0001726,2]
[402547524,1768704684935,-500.0,0.0001726,2]
[402547525,1768704684944,-151.0,0.0001726,2]
[402547526,1768704684953,-500.0,0.0001726,2]
[402547527,1768704684962,-719.96,0.0001726,2]
[402547528,1768704684971,-271.064633,0.0001726,2]
[402547529,1768704684980,-853.29,0.0001726,2]
[402547530,1768704684989,-151.0,0.0001726,2]
[402547531,1768704684999,-210.49871,0.0001726,2]
[402547532,1768704685009,-151.0,0.0001726,2]
[402547533,1768704685018,-500.0,0.0001726,2]
[402547534,1768704685026,-151.0,0.0001726,2]
[402547535,1768704685035,-212.372947,0.0001726,2]
[402547536,1768704685045,-151.0,0.0001726,2]
[402547537,1768704685055,-500.0,0.0001726,2]
[402547538,1768704685064,-554.1,0.0001726,2]
[402547539,1768704685073,-151.0,0.0001726,2]
[402547540,1768704685083,-243.879286,0.0001726,2]
[402547541,1768704685092,-500.0,0.0001726,2]
[402547542,1768704685102,-500.0,0.0001726,2]
[402547543,1768704685111,-500.0,0.0001726,2]
[402547544,1768704685120,-508.49,0.0001726,2]
[402547545,1768704685129,-500.0,0.0001726,2]
[402547546,1768704685138,-151.0,0.0001726,2]
[402547547,1768704685147,-506.56,0.0001726,2]
[402547548,1768704685156,-151.0,0.0001726,2]
[402547549,1768704685174,-151.0,0.0001726,2]
[402547550,1768704685185,-170.28722,0.0001726,2]
[402547551,1768704685194,-505.86132655,0.0001726,2]
[402547552,1768704685203,-168.486627,0.0001726,2]
[402547553,1768704685212,-500.0,0.0001726,2]
[402547554,1768704685222,-663.4,0.0001726,2]
[402547555,1768704685231,-168.486627,0.0001726,2]
[402547556,1768704685241,-168.486627,0.0001726,2]
[402547557,1768704685251,-168.486627,0.0001726,2]
[402547558,1768704685260,-500.0,0.0001726,2]
[402547559,1768704685269,-767.04,0.0001726,2]
[402547560,1768704685279,-500.0,0.0001726,2]
[402547561,1768704685288,-500.0,0.0001726,2]
[402547562,1768704685298,-529.92206963,0.0001726,2]
[402547563,1768704685307,-500.0,0.0001726,2]
[402547564,1768704685317,-591.99,0.0001726,2]
[402547565,1768704685327,-151.0,0.0001726,2]
[402547566,1768704685336,-151.0,0.0001726,2]
[402547567,1768704685345,-151.0,0.0001726,2]
[402547568,1768704685354,-500.0,0.0001726,2]
[402547569,1768704685363,-500.0,0.0001726,2]
[402547570,1768704685373,-1071.78,0.0001726,2]
[402547571,1768704685382,-500.0,0.0001726,2]
[402547572,1768704685391,-151.0,0.0001726,2]
[402547573,1768704685401,-254.213047,0.0001726,2]
[402547574,1768704685410,-500.0,0.0001726,2]
[402547575,1768704685419,-500.0,0.0001726,2]
[402547576,1768704685429,-500.0,0.0001726,2]
[402547577,1768704685439,-500.0,0.0001726,2]
[402547578,1768704685449,-500.0,0.0001726,2]
[402547579,1768704685458,-624.00925651,0.0001726,2]
[402547580,1768704685467,-500.0,0.0001726,2]
[402547581,1768704685476,-500.0,0.0001726,2]
[402547582,1768704685486,-500.0,0.0001726,2]
[402547583,1768704685495,-587.25,0.0001726,2]
[402547584,1768704685504,-502.19,0.0001726,2]
[402547585,1768704685513,-500.0,0.0001726,2]
[402547586,1768704685522,-151.0,0.0001726,2]
[402547587,1768704685531,-500.0,0.0001726,2]
[402547588,1768704685541,-200.15,0.0001726,2]
[402547589,1768704685550,-168.27626,0.0001726,2]
[402547590,1768704685559,-500.0,0.0001726,2]
[402547591,1768704685568,-500.0,0.0001726,2]
[402547592,1768704685577,-500.13,0.0001726,2]
[402547593,1768704685587,-500.0,0.0001726,2]
[402547594,1768704685596,-852.56,0.0001726,2]
[402547595,1768704685605,-413.5282112,0.0001726,2]
[402547596,1768704685615,-500.0,0.0001726,2]
[402547597,1768704685623,-500.0,0.0001726,2]
[402547598,1768704685632,-500.0,0.0001726,2]
[402547599,1768704685642,-1145.6,0.0001726,2]
[402547600,1768704685650,-500.0,0.0001726,2]
[402547601,1768704685659,-934.87,0.0001726,2]
[402547602,1768704685668,-500.58,0.0001726,2]
[402547603,1768704685677,-570.09,0.0001726,2]
[402547604,1768704685687,-500.0,0.0001726,2]
[402547605,1768704685699,-500.0,0.0001726,2]
[402547606,1768704685713,-500.0,0.0001726,2]
[402547607,1768704685722,-500.0,0.0001726,2]
[402547608,1768704685733,-500.0,0.0001726,2]
[402547609,1768704685742,-500.0,0.0001726,2]
[402547610,1768704685751,-500.0,0.0001726,2]
[402547611,1768704685761,-500.0,0.0001726,2]
[402547612,1768704685772,-500.0,0.0001726,2]
[402547613,1768704685782,-500.0,0.0001726,2]
[402547614,1768704685792,-500.0,0.0001726,2]
[402547615,1768704685801,-500.0,0.0001726,2]
[402547616,1768704685811,-500.0,0.0001726,2]
[402547617,1768704685820,-500.0,0.0001726,2]
[402547618,1768704685830,-500.0,0.0001726,2]
[402547619,1768704685840,-667.58,0.0001726,2]
[402547620,1768704685850,-500.0,0.0001726,2]
[402547621,1768704685859,-483.02412544,0.0001726,2]
[402547622,1768704685869,-189.79,0.0001726,2]
[402547623,1768704685879,-222.55981798,0.0001726,2]
[402547624,1768704685889,-500.0,0.0001726,2]
[402547625,1768704685898,-151.0,0.0001726,2]
[402547626,1768704685908,-170.805287,0.0001726,2]
[402547627,1768704685917,-500.0,0.0001726,2]
[402547628,1768704685926,-511.46,0.0001726,2]
[402547629,1768704685937,-151.0,0.0001726,2]
[402547630,1768704685946,-500.0,0.0001726,2]
[402547631,1768704685955,-618.15,0.0001726,2]
[402547632,1768704685964,-500.0,0.0001726,2]
[402547633,1768704685974,-500.0,0.0001726,2]
[402547634,1768704685983,-151.0,0.0001726,2]
[402547635,1768704685993,-185.6480238,0.0001726,2]
[402547636,1768704686003,-556.21,0.0001726,2]
[402547637,1768704686012,-541.16,0.0001726,2]
[402547638,1768704686022,-500.0,0.0001726,2]
[402547639,1768704686031,-500.0,0.0001726,2]
[402547640,1768704686041,-589.29,0.0001726,2]
[402547641,1768704686050,-500.0,0.0001726,2]
[402547642,1768704686060,-500.0,0.0001726,2]
[402547643,1768704686069,-500.0,0.0001726,2]
[402547644,1768704686079,-151.0,0.0001726,2]
[402547645,1768704686088,-155.271101,0.0001726,2]
[402547646,1768704686099,-652.06,0.0001726,2]
[402547647,1768704686108,-553.43,0.0001726,2]
[402547648,1768704686119,-500.0,0.0001726,2]
[402547649,1768704686129,-500.0,0.0001726,2]
[402547650,1768704686138,-500.0,0.0001726,2]
[402547651,1768704686147,-151.0,0.0001726,2]
[402547652,1768704686157,-500.0,0.0001726,2]
[402547653,1768704686166,-223.011586,0.0001726,2]
[402547654,1768704686176,-504.93649192,0.0001726,2]
[402547655,1768704686185,-500.0,0.0001726,2]
[402547656,1768704686195,-500.0,0.0001726,2]
[402547657,1768704686204,-500.0,0.0001726,2]
[402547658,1768704686213,-500.0,0.0001726,2]
[402547659,1768704686223,-500.0,0.0001726,2]
[402547660,1768704686233,-500.0,0.0001726,2]
[402547661,1768704686243,-500.0,0.0001726,2]
[402547662,1768704686252,-500.0,0.0001726,2]
[402547663,1768704686266,-500.0,0.0001726,2]
[402547664,1768704686275,-383.01,0.0001726,2]
[402547665,1768704686284,-535.32,0.0001726,2]
[402547666,1768704686294,-500.0,0.0001726,2]
[402547667,1768704686303,-500.0,0.0001726,2]
[402547668,1768704686313,-500.0,0.0001726,2]
[402547669,1768704686322,-548.63174989,0.0001726,2]
[402547670,1768704686332,-500.0,0.0001726,2]
[402547671,1768704686342,-500.0,0.0001726,2]
[402547672,1768704686351,-500.0,0.0001726,2]
[402547673,1768704686360,-500.0,0.0001726,2]
[402547674,1768704686370,-944.28,0.0001726,2]
[402547675,1768704686379,-691.68,0.0001726,2]
[402547676,1768704686389,-373.49224914,0.0001726,2]
[402547677,1768704686398,-500.0,0.0001726,2]
[402547678,1768704686407,-164.597483,0.0001726,2]
[402547679,1768704686417,-500.0,0.0001726,2]
[402547680,1768704686426,-186.722808,0.0001726,2]
[402547681,1768704686436,-500.0,0.0001726,2]
[402547682,1768704686445,-238.43659279,0.0001726,2]
[402547683,1768704686454,-544.97792338,0.0001726,2]
[402547684,1768704686464,-500.0,0.0001726,2]
[402547685,1768704686473,-500.0,0.0001726,2]
[402547686,1768704686482,-500.0,0.0001726,2]
[402547687,1768704686492,-154.30256178,0.0001726,2]
[402547688,1768704686501,-500.0,0.0001726,2]
[402547689,1768704686510,-500.0,0.0001726,2]
[402547690,1768704686520,-500.0,0.0001726,2]
[402547691,1768704686529,-151.0,0.0001726,2]
[402547692,1768704686538,-500.0,0.0001726,2]
[402547693,1768704686548,-500.0,0.0001726,2]
[402547694,1768704686557,-500.0,0.0001726,2]
[402547695,1768704686566,-500.0,0.0001726,2]
[402547696,1768704686576,-232.537506,0.0001726,2]
[402547697,1768704686587,-232.537506,0.0001726,2]
[402547698,1768704686598,-232.537506,0.0001726,2]
[402547699,1768704686608,-515.05,0.0001726,2]
[402547700,1768704686618,-500.0,0.0001726,2]
[402547701,1768704686627,-247.93203287,0.0001726,2]
[402547702,1768704686637,-232.537504,0.0001726,2]
[402547703,1768704686647,-264.99301298,0.0001726,2]
[402547704,1768704686656,-500.0,0.0001726,2]
[402547705,1768704686667,-500.0,0.0001726,2]
[402547706,1768704686677,-500.0,0.0001726,2]
[402547707,1768704686688,-550.57,0.0001726,2]
[402547708,1768704686700,-151.0,0.0001726,2]
[402547709,1768704686709,-500.0,0.0001726,2]
[402547710,1768704686719,-151.0,0.0001726,2]
[402547711,1768704686729,-151.0,0.0001726,2]
[402547712,1768704686741,-500.0,0.0001726,2]
[402547713,1768704686750,-500.0,0.0001726,2]
[402547714,1768704686760,-617.18,0.0001726,2]
[402547715,1768704686769,-509.26,0.0001726,2]
[402547716,1768704686778,-500.0,0.0001726,2]
[402547717,1768704686787,-500.0,0.0001726,2]
[402547718,1768704686797,-151.0,0.0001726,2]
[402547719,1768704686806,-500.0,0.0001726,2]
[402547720,1768704686819,-500.0,0.0001726,2]
[402547721,1768704686828,-329.289585,0.0001726,2]
[402547722,1768704686838,-500.0,0.0001726,2]
[402547723,1768704686847,-500.0,0.0001726,2]
[402547724,1768704686857,-329.289585,0.0001726,2]
[402547725,1768704686866,-795.73,0.0001726,2]
[402547726,1768704686875,-329.289585,0.0001726,2]
[402547727,1768704686885,-329.289577,0.0001726,2]
[402547728,1768704686894,-500.0,0.0001726,2]
[402547729,1768704686904,-500.0,0.0001726,2]
[402547730,1768704686913,-500.0,0.0001726,2]
[402547731,1768704686923,-500.0,0.0001726,2]
[402547732,1768704686932,-759.1,0.0001726,2]
[402547733,1768704686942,-500.0,0.0001726,2]
[402547734,1768704686951,-639.96317308,0.0001726,2]
[402547735,1768704686960,-208.77185,0.0001726,2]
[402547736,1768704686970,-500.0,0.0001726,2]
[402547737,1768704686979,-500.0,0.0001726,2]
[402547738,1768704686989,-500.0,0.0001726,2]
[402547739,1768704686998,-576.19045172,0.0001726,2]
[402547740,1768704687009,-151.0,0.0001726,2]
[402547741,1768704687018,-500.0,0.0001726,2]
[402547742,1768704687028,-500.0,0.0001726,2]
[402547743,1768704687038,-500.0,0.0001726,2]
[402547744,1768704687048,-500.0,0.0001726,2]
[402547745,1768704687057,-500.0,0.0001726,2]
[402547746,1768704687067,-570.85,0.0001726,2]
[402547747,1768704687077,-696.85,0.0001726,2]
[402547748,1768704687087,-500.0,0.0001726,2]
[402547749,1768704687096,-500.0,0.0001726,2]
[402547750,1768704687106,-500.0,0.0001726,2]
[402547751,1768704687115,-500.0,0.0001726,2]
[402547752,1768704687125,-151.0,0.0001726,2]
[402547753,1768704687134,-151.0,0.0001726,2]
[402547754,1768704687144,-500.0,0.0001726,2]
[402547755,1768704687155,-151.0,0.0001726,2]
[402547756,1768704687164,-615.88,0.0001726,2]
[402547757,1768704687174,-500.0,0.0001726,2]
[402547758,1768704687183,-202.98844784,0.0001726,2]
[402547759,1768704687192,-500.0,0.0001726,2]
[402547760,1768704687202,-540.82,0.0001726,2]
[402547761,1768704687211,-500.0,0.0001726,2]
[402547762,1768704687221,-756.2,0.0001726,2]
[402547763,1768704687230,-500.0,0.0001726,2]
[402547764,1768704687240,-151.0,0.0001726,2]
[402547765,1768704687250,-500.0,0.0001726,2]
[402547766,1768704687259,-500.0,0.0001726,2]
[402547767,1768704687269,-518.9,0.0001726,2]
[402547768,1768704687279,-500.0,0.0001726,2]
[402547769,1768704687288,-500.0,0.0001726,2]
[402547770,1768704687301,-500.0,0.0001726,2]
[402547771,1768704687311,-500.0,0.0001726,2]
[402547772,1768704687321,-541.63068026,0.0001726,2]
[402547773,1768704687332,-500.0,0.0001726,2]
[402547774,1768704687342,-500.0,0.0001726,2]
[402547775,1768704687356,-500.0,0.0001726,2]
[402547776,1768704687366,-191.77570824,0.0001726,2]
[402547777,1768704687376,-517.66,0.0001726,2]
[402547778,1768704687385,-500.0,0.0001726,2]
[402547779,1768704687395,-500.0,0.0001726,2]
[402547780,1768704687406,-500.0,0.0001726,2]
[402547781,1768704687416,-500.0,0.0001726,2]
[402547782,1768704687426,-967.46,0.0001726,2]
[402547783,1768704687435,-507.58,0.0001726,2]
[402547784,1768704687446,-604.28,0.0001726,2]
[402547785,1768704687455,-500.0,0.0001726,2]
[402547786,1768704687465,-500.0,0.0001726,2]
[402547787,1768704687475,-500.0,0.0001726,2]
[402547788,1768704687485,-500.0,0.0001726,2]
[402547789,1768704687495,-500.0,0.0001726,2]
[402547790,1768704687504,-500.0,0.0001726,2]
[402547791,1768704687514,-500.0,0.0001726,2]
[402547792,1768704687526,-500.0,0.0001726,2]
[402547793,1768704687536,-500.0,0.0001726,2]
[402547794,1768704687545,-500.0,0.0001726,2]
[402547795,1768704687556,-151.0,0.0001726,2]
[402547796,1768704687566,-151.0,0.0001726,2]
[402547797,1768704687576,-613.22,0.0001726,2]
[402547798,1768704687586,-500.0,0.0001726,2]
[402547799,1768704687596,-151.0,0.0001726,2]
[402547800,1768704687605,-500.0,0.0001726,2]
[402547801,1768704687615,-500.0,0.0001726,2]
[402547802,1768704687626,-151.0,0.0001726,2]
[402547803,1768704687636,-151.0,0.0001726,2]
[402547804,1768704687646,-509.8856167,0.0001726,2]
[402547805,1768704687656,-151.0,0.0001726,2]
[402547806,1768704687665,-618.82453635,0.0001726,2]
[402547807,1768704687675,-599.84,0.0001726,2]
[402547808,1768704687687,-535.56,0.0001726,2]
[402547809,1768704687696,-500.0,0.0001726,2]
[402547810,1768704687707,-500.0,0.0001726,2]
[402547811,1768704687716,-500.0,0.0001726,2]
[402547812,1768704687727,-500.0,0.0001726,2]
[402547813,1768704687740,-500.0,0.0001726,2]
[402547814,1768704687750,-500.0,0.0001726,2]
[402547815,1768704687762,-743.81,0.0001726,2]
[402547816,1768704687772,-500.0,0.0001726,2]
[402547817,1768704687781,-500.0,0.0001726,2]
[402547818,1768704687791,-613.70543,0.0001726,2]
[402547819,1768704687800,-613.70543,0.0001726,2]
[402547820,1768704687810,-151.0,0.0001726,2]
[402547821,1768704687820,-613.70543,0.0001726,2]
[402547822,1768704687829,-500.0,0.0001726,2]
[402547823,1768704687839,-151.0,0.0001726,2]
[402547824,1768704687849,-500.0,0.0001726,2]
[402547825,1768704687859,-613.705426,0.0001726,2]
[402547826,1768704687869,-151.0,0.0001726,2]
[402547827,1768704687878,-151.0,0.0001726,2]
[402547828,1768704687888,-500.0,0.0001726,2]
[402547829,1768704687898,-151.0,0.0001726,2]
[402547830,1768704687908,-500.0,0.0001726,2]
[402547831,1768704687917,-151.0,0.0001726,2]
[402547832,1768704687927,-500.0,0.0001726,2]
[402547833,1768704687936,-240.366862,0.0001726,2]
[402547834,1768704687946,-1374.37,0.0001726,2]
[402547835,1768704687956,-500.0,0.0001726,2]
[402547836,1768704687965,-500.0,0.0001726,2]
[402547837,1768704687975,-1133.57827,0.0001726,2]
[402547838,1768704687985,-1133.57827,0.0001726,2]
[402547839,1768704687995,-500.0,0.0001726,2]
[402547840,1768704688005,-1133.57827,0.0001726,2]
[402547841,1768704688015,-500.0,0.0001726,2]
[402547842,1768704688024,-1133.578276,0.0001726,2]
[402547843,1768704688035,-500.0,0.0001726,2]
[402547844,1768704688045,-470.773747,0.0001726,2]
[402547845,1768704688055,-1048.21588,0.0001726,2]
[402547846,1768704688064,-1285.645876,0.0001726,2]
[402547847,1768704688074,-470.773747,0.0001726,2]
[402547848,1768704688084,-1048.21588,0.0001726,2]
[402547849,1768704688094,-500.0,0.0001726,2]
[402547850,1768704688104,-1285.645876,0.0001726,2]
[402547851,1768704688117,-470.773747,0.0001726,2]
[402547852,1768704688127,-1048.21588,0.0001726,2]
[402547853,1768704688137,-500.0,0.0001726,2]
[402547854,1768704688146,-1285.645876,0.0001726,2]
[402547855,1768704688156,-470.773754,0.0001726,2]
[402547856,1768704688166,-1048.215884,0.0001726,2]
[402547857,1768704688176,-1285.645879,0.0001726,2]
[402547858,1768704688185,-500.0,0.0001726,2]
[402547859,1768704688195,-566.94,0.0001726,2]
[402547860,1768704688204,-250.57265152,0.0001726,2]
[402547861,1768704688214,-500.0,0.0001726,2]
[402547862,1768704688223,-500.0,0.0001726,2]
[402547863,1768704688233,-500.0,0.0001726,2]
[402547864,1768704688244,-500.0,0.0001726,2]
[402547865,1768704688253,-151.0,0.0001726,2]
[402547866,1768704688263,-500.0,0.0001726,2]
[402547867,1768704688273,-151.0,0.0001726,2]
[402547868,1768704688282,-618.9,0.0001726,2]
[402547869,1768704688292,-151.0,0.0001726,2]
[402547870,1768704688302,-500.0,0.0001726,2]
[402547871,1768704688311,-500.0,0.0001726,2]
[402547872,1768704688321,-500.0,0.0001726,2]
[402547873,1768704688331,-500.0,0.0001726,2]
[402547874,1768704688341,-500.0,0.0001726,2]
[402547875,1768704688350,-347.56905726,0.0001726,2]
[402547876,1768704688360,-500.0,0.0001726,2]
[402547877,1768704688369,-686.87,0.0001726,2]
[402547878,1768704688379,-500.0,0.0001726,2]
[402547879,1768704688388,-699.56,0.0001726,2]
[402547880,1768704688398,-500.0,0.0001726,2]
[402547881,1768704688407,-567.31,0.0001726,2]
[402547882,1768704688416,-253.551329,0.0001726,2]
[402547883,1768704688426,-500.0,0.0001726,2]
[402547884,1768704688435,-253.551329,0.0001726,2]
[402547885,1768704688445,-500.0,0.0001726,2]
[402547886,1768704688455,-253.551329,0.0001726,2]
[402547887,1768704688465,-500.0,0.0001726,2]
[402547888,1768704688474,-1000.0,0.0001726,2]
[402547889,1768704688483,-253.551323,0.0001726,2]
[402547890,1768704688493,-500.0,0.0001726,2]
[402547891,1768704688502,-500.0,0.0001726,2]
[402547892,1768704688512,-179.785744,0.0001726,2]
[402547893,1768704688522,-500.0,0.0001726,2]
[402547894,1768704688532,-179.785744,0.0001726,2]
[402547895,1768704688541,-549.87,0.0001726,2]
[402547896,1768704688551,-179.785744,0.0001726,2]